[Event "Titled Tuesday Blitz June 07 Early 2022"]
[White "Bortnyk, Olexandr"]
[Black "Sadubayev, Airat"]
[WhiteFideId "14120828"]
[BlackFideId "13713264"]
[WhiteElo "2723"]
[BlackElo "2230"]
[Result "1-0"]
[Round "05"]
[TimeControl "180+1"]
[Date "2022.06.07"]
[WhiteClock "0:00:04"]
[BlackClock "0:00:02"]

1. d4 {[%clk 0:03:00]}  d5 {[%clk 0:02:58]} 2. Nc3 {[%clk 0:03:00]}  Nf6 {[%clk 0:02:57]} 3. Bf4 {[%clk 0:03:01]}  Bf5 {[%clk 0:02:56]} 4. e3 {[%clk 0:03:01]}  e6 {[%clk 0:02:53]} 5. Nf3 {[%clk 0:02:59]}  Bd6 {[%clk 0:02:49]} 6. Ne5 {[%clk 0:02:59]}  h6 {[%clk 0:02:43]} 7. Bd3 {[%clk 0:02:58]}  Bxd3 {[%clk 0:02:39]} 8. cxd3 {[%clk 0:02:59]}  c6 {[%clk 0:02:36]} 9. O-O {[%clk 0:02:58]}  Qe7 {[%clk 0:02:35]} 10. Qb3 {[%clk 0:02:56]}  Nh5 {[%clk 0:02:21]} 11. Rfe1 {[%clk 0:02:45]}  Nxf4 {[%clk 0:02:18]} 12. exf4 {[%clk 0:02:46]}  O-O {[%clk 0:02:14]} 13. f5 {[%clk 0:02:39]}  Qc7 {[%clk 0:01:59]} 14. fxe6 {[%clk 0:02:35]}  fxe6 {[%clk 0:01:58]} 15. Rac1 {[%clk 0:02:33]}  Qb6 {[%clk 0:01:57]} 16. Qa4 {[%clk 0:02:05]}  Na6 {[%clk 0:01:39]} 17. Nd7 {[%clk 0:01:54]}  Bxh2+ {[%clk 0:01:28]} 18. Kxh2 {[%clk 0:01:50]}  Qc7+ {[%clk 0:01:28]} 19. Ne5 {[%clk 0:01:50]}  Rxf2 {[%clk 0:01:27]} 20. Rf1 {[%clk 0:01:43]}  Rxb2 {[%clk 0:01:10]} 21. Rf7 {[%clk 0:01:38]}  Qd8 {[%clk 0:01:09]} 22. Qd1 {[%clk 0:01:28]}  Qh4+ {[%clk 0:01:02]} 23. Kg1 {[%clk 0:01:27]}  Qxd4+ {[%clk 0:01:01]} 24. Kh1 {[%clk 0:01:19]}  Qxe5 {[%clk 0:00:53]} 25. Qf3 {[%clk 0:01:17]}  Nb4 {[%clk 0:00:32]} 26. Rf1 {[%clk 0:00:35]}  Qxc3 {[%clk 0:00:23]} 27. Qg4 {[%clk 0:00:35]}  Re8 {[%clk 0:00:13]} 28. d4 {[%clk 0:00:31]}  g5 {[%clk 0:00:07]} 29. Qh5 {[%clk 0:00:20]}  Qc2 {[%clk 0:00:08]} 30. Rg7+ {[%clk 0:00:19]}  Kxg7 {[%clk 0:00:06]} 31. Qf7+ {[%clk 0:00:19]}  Kh8 {[%clk 0:00:07]} 32. Qxe8+ {[%clk 0:00:20]}  Kg7 {[%clk 0:00:07]} 33. Rf7+ {[%clk 0:00:11]}  Kg6 {[%clk 0:00:07]} 34. Rf2+ {[%clk 0:00:08]}  Kg7 {[%clk 0:00:06]} 35. Qe7+ {[%clk 0:00:08]}  Kg6 {[%clk 0:00:06]} 36. Qxe6+ {[%clk 0:00:09]}  Kg7 {[%clk 0:00:05]} 37. Qf7+ {[%clk 0:00:08]}  Kh8 {[%clk 0:00:05]} 38. Qe8+ {[%clk 0:00:06]}  Kh7 {[%clk 0:00:06]} 39. Rxc2 {[%clk 0:00:05]}  Nxc2 {[%clk 0:00:06]} 40. Qf7+ {[%clk 0:00:05]}  Kh8 {[%clk 0:00:06]} 41. Kh2 {[%clk 0:00:06]}  a5 {[%clk 0:00:04]} 42. Kh3 {[%clk 0:00:05]}  Nb4 {[%clk 0:00:02]} 43. Kg4 {[%clk 0:00:04]}  Rxg2+ {[%clk 0:00:02]} 44. Kh5 {[%clk 0:00:04]} 1-0


[Site "https://www.chess.com"]

[Event "Titled Tuesday Blitz June 07 Early 2022"]
[White "Djokic, Mihailo"]
[Black "Bachmann, Axel"]
[WhiteFideId "976440"]
[BlackFideId "3700488"]
[WhiteElo "2255"]
[BlackElo "2587"]
[Result "1-0"]
[Round "05"]
[TimeControl "180+1"]
[Date "2022.06.07"]
[WhiteClock "0:00:06"]
[BlackClock "0:00:11"]

1. e4 {[%clk 0:02:31]}  d6 {[%clk 0:02:52]} 2. d4 {[%clk 0:02:08]}  g6 {[%clk 0:02:51]} 3. Nc3 {[%clk 0:02:05]}  c6 {[%clk 0:02:51]} 4. Be3 {[%clk 0:02:05]}  Nd7 {[%clk 0:02:47]} 5. Nf3 {[%clk 0:01:58]}  b5 {[%clk 0:02:44]} 6. Bd3 {[%clk 0:01:56]}  e5 {[%clk 0:02:43]} 7. d5 {[%clk 0:01:46]}  b4 {[%clk 0:02:19]} 8. dxc6 {[%clk 0:01:45]}  bxc3 {[%clk 0:02:20]} 9. cxd7+ {[%clk 0:01:45]}  Bxd7 {[%clk 0:02:19]} 10. b3 {[%clk 0:01:32]}  Nf6 {[%clk 0:02:18]} 11. Bg5 {[%clk 0:01:24]}  Be7 {[%clk 0:02:11]} 12. Qc1 {[%clk 0:01:21]}  O-O {[%clk 0:02:09]} 13. O-O {[%clk 0:01:18]}  Nh5 {[%clk 0:02:06]} 14. Bh6 {[%clk 0:01:12]}  Re8 {[%clk 0:01:56]} 15. Bc4 {[%clk 0:01:11]}  Rc8 {[%clk 0:01:52]} 16. Rd1 {[%clk 0:01:07]}  Rxc4 {[%clk 0:01:35]} 17. bxc4 {[%clk 0:01:06]}  Qc7 {[%clk 0:01:36]} 18. Rb1 {[%clk 0:00:59]}  Qxc4 {[%clk 0:01:24]} 19. Nxe5 {[%clk 0:00:55]}  dxe5 {[%clk 0:01:21]} 20. Rxd7 {[%clk 0:00:55]}  Bc5 {[%clk 0:01:10]} 21. Rbb7 {[%clk 0:00:50]}  Nf4 {[%clk 0:00:22]} 22. Bxf4 {[%clk 0:00:20]}  exf4 {[%clk 0:00:23]} 23. Rxf7 {[%clk 0:00:18]}  Qxe4 {[%clk 0:00:22]} 24. h3 {[%clk 0:00:11]}  Bd4 {[%clk 0:00:12]} 25. Qd1 {[%clk 0:00:02]}  g5 {[%clk 0:00:05]} 26. Rbd7 {[%clk 0:00:02]}  Qe1+ {[%clk 0:00:02]} 27. Qxe1 {[%clk 0:00:02]}  Rxe1+ {[%clk 0:00:03]} 28. Kh2 {[%clk 0:00:03]}  Bxf2 {[%clk 0:00:03]} 29. Rg7+ {[%clk 0:00:04]}  Kf8 {[%clk 0:00:04]} 30. Rxg5 {[%clk 0:00:04]}  Bg3+ {[%clk 0:00:04]} 31. Rxg3 {[%clk 0:00:04]}  fxg3+ {[%clk 0:00:05]} 32. Kxg3 {[%clk 0:00:05]}  Re2 {[%clk 0:00:05]} 33. Rxh7 {[%clk 0:00:04]}  Rxc2 {[%clk 0:00:06]} 34. Rxa7 {[%clk 0:00:05]}  Rc1 {[%clk 0:00:05]} 35. Rc7 {[%clk 0:00:05]}  c2 {[%clk 0:00:06]} 36. a4 {[%clk 0:00:05]}  Ke8 {[%clk 0:00:07]} 37. a5 {[%clk 0:00:05]}  Kd8 {[%clk 0:00:08]} 38. Rc5 {[%clk 0:00:05]}  Kd7 {[%clk 0:00:09]} 39. a6 {[%clk 0:00:06]}  Ra1 {[%clk 0:00:10]} 40. Rxc2 {[%clk 0:00:06]}  Ra3+ {[%clk 0:00:10]} 41. Kg4 {[%clk 0:00:06]}  Rxa6 {[%clk 0:00:11]} 42. Rf2 {[%clk 0:00:05]}  Ke7 {[%clk 0:00:11]} 43. h4 {[%clk 0:00:06]} 1-0


[Site "https://www.chess.com"]

[Event "Titled Tuesday Blitz June 07 Early 2022"]
[White "Hasangatin, Ramil"]
[Black "Cardoso Cardoso, Jose Gabriel"]
[WhiteFideId "4122160"]
[BlackFideId "4430492"]
[WhiteElo "2384"]
[BlackElo "2485"]
[Result "0-1"]
[Round "05"]
[TimeControl "180+1"]
[Date "2022.06.07"]
[WhiteClock "0:00:04"]
[BlackClock "0:00:08"]

1. e4 {[%clk 0:03:00]}  e6 {[%clk 0:02:54]} 2. d3 {[%clk 0:03:00]}  d5 {[%clk 0:02:54]} 3. Qe2 {[%clk 0:03:01]}  Nc6 {[%clk 0:02:51]} 4. Nf3 {[%clk 0:03:00]}  Nf6 {[%clk 0:02:43]} 5. g3 {[%clk 0:03:00]}  a5 {[%clk 0:02:39]} 6. Bg2 {[%clk 0:03:00]}  a4 {[%clk 0:02:39]} 7. O-O {[%clk 0:02:59]}  Be7 {[%clk 0:02:35]} 8. Re1 {[%clk 0:02:57]}  b5 {[%clk 0:02:22]} 9. exd5 {[%clk 0:02:53]}  Nxd5 {[%clk 0:02:21]} 10. d4 {[%clk 0:02:50]}  Rb8 {[%clk 0:02:19]} 11. Nbd2 {[%clk 0:02:29]}  O-O {[%clk 0:01:52]} 12. Ne4 {[%clk 0:02:29]}  b4 {[%clk 0:01:44]} 13. Qd1 {[%clk 0:02:23]}  h6 {[%clk 0:01:29]} 14. c4 {[%clk 0:02:05]}  bxc3 {[%clk 0:01:26]} 15. Nxc3 {[%clk 0:01:56]}  a3 {[%clk 0:00:57]} 16. Nxd5 {[%clk 0:01:56]}  axb2 {[%clk 0:00:58]} 17. Nxe7+ {[%clk 0:01:55]}  Nxe7 {[%clk 0:00:58]} 18. Rb1 {[%clk 0:01:24]}  bxc1=Q {[%clk 0:00:55]} 19. Qxc1 {[%clk 0:01:25]}  Bb7 {[%clk 0:00:49]} 20. Qc5 {[%clk 0:01:20]}  Nf5 {[%clk 0:00:44]} 21. Red1 {[%clk 0:01:05]}  Bd5 {[%clk 0:00:40]} 22. Rxb8 {[%clk 0:01:01]}  Qxb8 {[%clk 0:00:41]} 23. a4 {[%clk 0:01:00]}  Qa8 {[%clk 0:00:40]} 24. Qc3 {[%clk 0:00:23]}  Qxa4 {[%clk 0:00:36]} 25. Ra1 {[%clk 0:00:23]}  Qb5 {[%clk 0:00:32]} 26. Rc1 {[%clk 0:00:09]}  Rb8 {[%clk 0:00:14]} 27. Ne5 {[%clk 0:00:09]}  Bxg2 {[%clk 0:00:13]} 28. Kxg2 {[%clk 0:00:10]}  Qd5+ {[%clk 0:00:13]} 29. Nf3 {[%clk 0:00:10]}  Rb3 {[%clk 0:00:11]} 30. Qc6 {[%clk 0:00:09]}  Qxc6 {[%clk 0:00:10]} 31. Rxc6 {[%clk 0:00:08]}  Rxf3 {[%clk 0:00:10]} 32. Rxc7 {[%clk 0:00:04]}  Nxd4 {[%clk 0:00:08]} 0-1


[Site "https://www.chess.com"]

[Event "Titled Tuesday Blitz June 07 Early 2022"]
[White "Le, Tuan Minh"]
[Black "Sapunov, Evgeny"]
[WhiteFideId "12401153"]
[BlackFideId "4126661"]
[WhiteElo "2530"]
[BlackElo "2470"]
[Result "1-0"]
[Round "05"]
[TimeControl "180+1"]
[Date "2022.06.07"]
[WhiteClock "0:00:16"]
[BlackClock "0:00:07"]

1. d4 {[%clk 0:03:00]}  Nf6 {[%clk 0:02:59]} 2. Nf3 {[%clk 0:03:00]}  g6 {[%clk 0:02:59]} 3. Bg5 {[%clk 0:03:01]}  Bg7 {[%clk 0:02:58]} 4. Nbd2 {[%clk 0:03:01]}  d5 {[%clk 0:02:59]} 5. c3 {[%clk 0:03:01]}  Nbd7 {[%clk 0:02:59]} 6. e3 {[%clk 0:03:02]}  c5 {[%clk 0:02:59]} 7. Bd3 {[%clk 0:03:02]}  O-O {[%clk 0:03:00]} 8. O-O {[%clk 0:03:02]}  b6 {[%clk 0:03:00]} 9. Qe2 {[%clk 0:03:02]}  Bb7 {[%clk 0:03:00]} 10. h3 {[%clk 0:03:03]}  Qc7 {[%clk 0:02:54]} 11. Bf4 {[%clk 0:03:03]}  Qc8 {[%clk 0:02:54]} 12. a4 {[%clk 0:02:59]}  a6 {[%clk 0:02:54]} 13. Rfd1 {[%clk 0:02:59]}  Bc6 {[%clk 0:02:53]} 14. b4 {[%clk 0:02:46]}  c4 {[%clk 0:02:53]} 15. Bc2 {[%clk 0:02:45]}  b5 {[%clk 0:02:53]} 16. Ne5 {[%clk 0:02:33]}  Nxe5 {[%clk 0:02:51]} 17. Bxe5 {[%clk 0:02:33]}  Bh6 {[%clk 0:02:47]} 18. Qf3 {[%clk 0:02:26]}  Nd7 {[%clk 0:02:38]} 19. Bf4 {[%clk 0:02:26]}  Bg7 {[%clk 0:02:38]} 20. Qg3 {[%clk 0:02:22]}  Re8 {[%clk 0:02:30]} 21. Nf3 {[%clk 0:02:21]}  Qb7 {[%clk 0:02:25]} 22. a5 {[%clk 0:02:13]}  Nf6 {[%clk 0:02:20]} 23. Qh4 {[%clk 0:02:13]}  Ne4 {[%clk 0:02:15]} 24. Ng5 {[%clk 0:01:48]}  Nf6 {[%clk 0:01:59]} 25. Be5 {[%clk 0:01:04]}  h6 {[%clk 0:01:51]} 26. Nf3 {[%clk 0:00:47]}  Bd7 {[%clk 0:01:13]} 27. Nd2 {[%clk 0:00:33]}  Bc6 {[%clk 0:01:05]} 28. f4 {[%clk 0:00:30]}  Bf8 {[%clk 0:00:58]} 29. f5 {[%clk 0:00:21]}  g5 {[%clk 0:00:53]} 30. Qg3 {[%clk 0:00:21]}  Ne4 {[%clk 0:00:50]} 31. Nxe4 {[%clk 0:00:20]}  dxe4 {[%clk 0:00:51]} 32. f6 {[%clk 0:00:19]}  exf6 {[%clk 0:00:48]} 33. Bxf6 {[%clk 0:00:20]}  Re6 {[%clk 0:00:44]} 34. Rf1 {[%clk 0:00:17]}  Bg7 {[%clk 0:00:43]} 35. Bxg7 {[%clk 0:00:15]}  Kxg7 {[%clk 0:00:44]} 36. Rf5 {[%clk 0:00:15]}  f6 {[%clk 0:00:42]} 37. Raf1 {[%clk 0:00:16]}  Rf8 {[%clk 0:00:42]} 38. Rc5 {[%clk 0:00:16]}  Rf7 {[%clk 0:00:37]} 39. Bd1 {[%clk 0:00:16]}  Bd5 {[%clk 0:00:17]} 40. Bh5 {[%clk 0:00:16]}  Rfe7 {[%clk 0:00:15]} 41. Bg4 {[%clk 0:00:17]}  Kg6 {[%clk 0:00:13]} 42. h4 {[%clk 0:00:17]}  Qd7 {[%clk 0:00:10]} 43. Qf2 {[%clk 0:00:14]}  Kg7 {[%clk 0:00:09]} 44. Qf5 {[%clk 0:00:15]}  Bb7 {[%clk 0:00:08]} 45. Bh5 {[%clk 0:00:15]}  Rd6 {[%clk 0:00:08]} 46. Qg6+ {[%clk 0:00:15]}  Kh8 {[%clk 0:00:07]} 47. Qxh6+ {[%clk 0:00:16]}  Kg8 {[%clk 0:00:07]} 48. Rxg5+ {[%clk 0:00:16]} 1-0


[Site "https://www.chess.com"]

[Event "Titled Tuesday Blitz June 07 Early 2022"]
[White "Lianes Garcia, Marcos"]
[Black "Grischuk, Alexander"]
[WhiteFideId "32060777"]
[BlackFideId "4126025"]
[WhiteElo "2310"]
[BlackElo "2762"]
[Result "0-1"]
[Round "05"]
[TimeControl "180+1"]
[Date "2022.06.07"]
[WhiteClock "0:00:04"]
[BlackClock "0:00:16"]

1. e4 {[%clk 0:03:00]}  e6 {[%clk 0:03:00]} 2. d4 {[%clk 0:02:59]}  d5 {[%clk 0:03:00]} 3. exd5 {[%clk 0:03:00]}  exd5 {[%clk 0:03:00]} 4. Nf3 {[%clk 0:03:00]}  Bd6 {[%clk 0:02:58]} 5. Bd3 {[%clk 0:03:00]}  Ne7 {[%clk 0:02:58]} 6. O-O {[%clk 0:03:00]}  Nbc6 {[%clk 0:02:57]} 7. c3 {[%clk 0:02:59]}  Bg4 {[%clk 0:02:53]} 8. Re1 {[%clk 0:02:51]}  Qd7 {[%clk 0:02:53]} 9. b4 {[%clk 0:02:51]}  O-O {[%clk 0:02:50]} 10. a4 {[%clk 0:02:50]}  Ng6 {[%clk 0:02:46]} 11. h3 {[%clk 0:02:44]}  Bf5 {[%clk 0:02:46]} 12. Qc2 {[%clk 0:02:16]}  Nce7 {[%clk 0:02:25]} 13. Nbd2 {[%clk 0:02:08]}  Rfe8 {[%clk 0:02:20]} 14. Nf1 {[%clk 0:02:06]}  f6 {[%clk 0:02:02]} 15. Bxf5 {[%clk 0:02:01]}  Qxf5 {[%clk 0:01:57]} 16. Qxf5 {[%clk 0:01:55]}  Nxf5 {[%clk 0:01:58]} 17. Ne3 {[%clk 0:01:56]}  Nxe3 {[%clk 0:01:58]} 18. Bxe3 {[%clk 0:01:56]}  a5 {[%clk 0:01:45]} 19. b5 {[%clk 0:01:51]}  Ne7 {[%clk 0:01:45]} 20. Nd2 {[%clk 0:01:41]}  Kf7 {[%clk 0:01:44]} 21. Kf1 {[%clk 0:01:41]}  h5 {[%clk 0:01:43]} 22. Ke2 {[%clk 0:01:42]}  Nf5 {[%clk 0:01:23]} 23. Kd3 {[%clk 0:01:34]}  g5 {[%clk 0:01:22]} 24. Nb3 {[%clk 0:01:31]}  Nh4 {[%clk 0:01:19]} 25. Rg1 {[%clk 0:01:26]}  Kg6 {[%clk 0:01:17]} 26. Bd2 {[%clk 0:01:21]}  f5 {[%clk 0:01:14]} 27. Rae1 {[%clk 0:00:59]}  b6 {[%clk 0:01:14]} 28. Rxe8 {[%clk 0:00:54]}  Rxe8 {[%clk 0:01:15]} 29. Bc1 {[%clk 0:00:35]}  f4 {[%clk 0:01:12]} 30. Bd2 {[%clk 0:00:35]}  Kf5 {[%clk 0:01:11]} 31. f3 {[%clk 0:00:27]}  g4 {[%clk 0:01:03]} 32. hxg4+ {[%clk 0:00:25]}  hxg4 {[%clk 0:01:04]} 33. fxg4+ {[%clk 0:00:23]}  Kxg4 {[%clk 0:01:05]} 34. Nc1 {[%clk 0:00:21]}  Kg3 {[%clk 0:00:44]} 35. Rh1 {[%clk 0:00:19]}  Nxg2 {[%clk 0:00:42]} 36. Ne2+ {[%clk 0:00:19]}  Kg4 {[%clk 0:00:32]} 37. Rg1 {[%clk 0:00:12]}  f3 {[%clk 0:00:31]} 38. Nc1 {[%clk 0:00:10]}  Kg3 {[%clk 0:00:31]} 39. Rf1 {[%clk 0:00:08]}  Bf4 {[%clk 0:00:28]} 40. Kc2 {[%clk 0:00:06]}  Ne3+ {[%clk 0:00:18]} 41. Bxe3 {[%clk 0:00:05]}  Bxe3 {[%clk 0:00:19]} 42. Nd3 {[%clk 0:00:05]}  Kg2 {[%clk 0:00:18]} 43. Re1 {[%clk 0:00:05]}  f2 {[%clk 0:00:18]} 44. Nxf2 {[%clk 0:00:06]}  Kxf2 {[%clk 0:00:18]} 45. Rh1 {[%clk 0:00:05]}  Bf4 {[%clk 0:00:17]} 46. Kd3 {[%clk 0:00:04]}  Re3+ {[%clk 0:00:17]} 47. Kc2 {[%clk 0:00:04]}  Re2+ {[%clk 0:00:16]} 48. Kb3 {[%clk 0:00:05]}  Kf3 {[%clk 0:00:15]} 49. Rh3+ {[%clk 0:00:05]}  Ke4 {[%clk 0:00:15]} 50. Ka3 {[%clk 0:00:05]}  Bc1+ {[%clk 0:00:14]} 51. Kb3 {[%clk 0:00:03]}  Rb2+ {[%clk 0:00:15]} 52. Ka3 {[%clk 0:00:04]}  Rh2+ {[%clk 0:00:16]} 53. Kb3 {[%clk 0:00:04]}  Rxh3 {[%clk 0:00:16]} 0-1


[Site "https://www.chess.com"]

[Event "Titled Tuesday Blitz June 07 Early 2022"]
[White "Matinian, Nikita"]
[Black "Slugin, Sergey"]
[WhiteFideId "24129100"]
[BlackFideId "4122569"]
[WhiteElo "2422"]
[BlackElo "2358"]
[Result "0-1"]
[Round "05"]
[TimeControl "180+1"]
[Date "2022.06.07"]
[WhiteClock "0:00:15"]
[BlackClock "0:00:36"]

1. e4 {[%clk 0:03:00]}  e5 {[%clk 0:03:00]} 2. Nf3 {[%clk 0:03:00]}  Nc6 {[%clk 0:03:00]} 3. Bb5 {[%clk 0:03:00]}  a6 {[%clk 0:03:01]} 4. Ba4 {[%clk 0:03:00]}  d6 {[%clk 0:03:02]} 5. Bxc6+ {[%clk 0:02:59]}  bxc6 {[%clk 0:03:02]} 6. d4 {[%clk 0:03:00]}  f6 {[%clk 0:03:02]} 7. Nc3 {[%clk 0:02:58]}  g6 {[%clk 0:02:57]} 8. Qd3 {[%clk 0:02:52]}  Be6 {[%clk 0:02:47]} 9. Be3 {[%clk 0:02:51]}  Bg7 {[%clk 0:02:44]} 10. O-O-O {[%clk 0:02:50]}  Ne7 {[%clk 0:02:43]} 11. dxe5 {[%clk 0:02:48]}  fxe5 {[%clk 0:02:35]} 12. Ng5 {[%clk 0:02:46]}  Bg8 {[%clk 0:02:34]} 13. f4 {[%clk 0:02:40]}  exf4 {[%clk 0:02:28]} 14. Bxf4 {[%clk 0:02:40]}  Qd7 {[%clk 0:02:17]} 15. e5 {[%clk 0:02:39]}  Qf5 {[%clk 0:01:53]} 16. exd6 {[%clk 0:02:38]}  Qxf4+ {[%clk 0:01:52]} 17. Kb1 {[%clk 0:02:37]}  cxd6 {[%clk 0:01:44]} 18. Rhe1 {[%clk 0:02:31]}  Qxg5 {[%clk 0:01:40]} 19. Qxd6 {[%clk 0:02:31]}  Bd5 {[%clk 0:01:14]} 20. Rxd5 {[%clk 0:01:08]}  cxd5 {[%clk 0:01:15]} 21. Qc6+ {[%clk 0:00:53]}  Kf7 {[%clk 0:01:13]} 22. Qe6+ {[%clk 0:00:44]}  Kf8 {[%clk 0:01:13]} 23. Rf1+ {[%clk 0:00:44]}  Ke8 {[%clk 0:01:14]} 24. Qf7+ {[%clk 0:00:33]}  Kd7 {[%clk 0:01:14]} 25. Qxg7 {[%clk 0:00:33]}  Rhg8 {[%clk 0:01:03]} 26. Qxh7 {[%clk 0:00:29]}  Rgf8 {[%clk 0:00:51]} 27. Rd1 {[%clk 0:00:28]}  Kc6 {[%clk 0:00:40]} 28. Qh3 {[%clk 0:00:25]}  Qe5 {[%clk 0:00:40]} 29. a3 {[%clk 0:00:17]}  d4 {[%clk 0:00:38]} 30. Na2 {[%clk 0:00:15]}  a5 {[%clk 0:00:38]} 31. c3 {[%clk 0:00:14]}  Qf5+ {[%clk 0:00:37]} 32. Qxf5 {[%clk 0:00:14]}  Nxf5 {[%clk 0:00:38]} 33. cxd4 {[%clk 0:00:14]}  Rad8 {[%clk 0:00:37]} 34. Rc1+ {[%clk 0:00:15]}  Kb6 {[%clk 0:00:36]} 0-1


[Site "https://www.chess.com"]

[Event "Titled Tuesday Blitz June 07 Early 2022"]
[White "Matlakov, Maxim"]
[Black "Nakamura, Hikaru"]
[WhiteFideId "4168003"]
[BlackFideId "2016192"]
[WhiteElo "2669"]
[BlackElo "2850"]
[Result "0-1"]
[Round "05"]
[TimeControl "180+1"]
[Date "2022.06.07"]
[WhiteClock "0:00:23"]
[BlackClock "0:01:53"]

1. d4 {[%clk 0:03:00]}  Nf6 {[%clk 0:02:55]} 2. Nf3 {[%clk 0:03:00]}  e6 {[%clk 0:02:53]} 3. c4 {[%clk 0:03:00]}  d5 {[%clk 0:02:54]} 4. g3 {[%clk 0:03:01]}  Bb4+ {[%clk 0:02:53]} 5. Nbd2 {[%clk 0:03:00]}  Be7 {[%clk 0:02:53]} 6. Bg2 {[%clk 0:02:59]}  O-O {[%clk 0:02:53]} 7. O-O {[%clk 0:02:59]}  b6 {[%clk 0:02:53]} 8. Ne5 {[%clk 0:02:59]}  Bb7 {[%clk 0:02:53]} 9. b3 {[%clk 0:02:43]}  Nbd7 {[%clk 0:02:52]} 10. Bb2 {[%clk 0:02:41]}  c5 {[%clk 0:02:44]} 11. Nxd7 {[%clk 0:02:12]}  Qxd7 {[%clk 0:02:44]} 12. dxc5 {[%clk 0:02:11]}  bxc5 {[%clk 0:02:45]} 13. e3 {[%clk 0:02:11]}  Rfd8 {[%clk 0:02:37]} 14. cxd5 {[%clk 0:02:07]}  exd5 {[%clk 0:02:29]} 15. Nf3 {[%clk 0:02:06]}  a5 {[%clk 0:02:26]} 16. Qc2 {[%clk 0:02:04]}  a4 {[%clk 0:02:26]} 17. Rfd1 {[%clk 0:01:59]}  Ne4 {[%clk 0:02:23]} 18. Ne5 {[%clk 0:01:50]}  Qf5 {[%clk 0:02:13]} 19. Bxe4 {[%clk 0:01:06]}  dxe4 {[%clk 0:02:10]} 20. bxa4 {[%clk 0:01:06]}  Bd5 {[%clk 0:02:05]} 21. Nc4 {[%clk 0:00:52]}  Qe6 {[%clk 0:01:56]} 22. Rac1 {[%clk 0:00:50]}  Rdb8 {[%clk 0:01:55]} 23. Ba3 {[%clk 0:00:25]}  h5 {[%clk 0:01:55]} 24. Qe2 {[%clk 0:00:23]}  Rxa4 {[%clk 0:01:53]} 0-1


[Site "https://www.chess.com"]

[Event "Titled Tuesday Blitz June 07 Early 2022"]
[White "Molina, Roberto Junio Brito"]
[Black "Dubov, Daniil"]
[WhiteFideId "2109450"]
[BlackFideId "24126055"]
[WhiteElo "2432"]
[BlackElo "2791"]
[Result "0-1"]
[Round "05"]
[TimeControl "180+1"]
[Date "2022.06.07"]
[WhiteClock "0:00:04"]
[BlackClock "0:00:08"]

1. d4 {[%clk 0:03:00]}  Nf6 {[%clk 0:02:57]} 2. c4 {[%clk 0:03:00]}  e6 {[%clk 0:02:58]} 3. Nf3 {[%clk 0:03:00]}  d5 {[%clk 0:02:58]} 4. Nc3 {[%clk 0:03:00]}  c6 {[%clk 0:02:58]} 5. Bg5 {[%clk 0:02:56]}  h6 {[%clk 0:02:56]} 6. Bxf6 {[%clk 0:02:55]}  Qxf6 {[%clk 0:02:57]} 7. e3 {[%clk 0:02:55]}  Nd7 {[%clk 0:02:56]} 8. Rc1 {[%clk 0:02:55]}  Bd6 {[%clk 0:02:54]} 9. Be2 {[%clk 0:02:53]}  dxc4 {[%clk 0:02:54]} 10. Bxc4 {[%clk 0:02:53]}  O-O {[%clk 0:02:52]} 11. O-O {[%clk 0:02:53]}  Qe7 {[%clk 0:02:52]} 12. Qc2 {[%clk 0:02:44]}  b6 {[%clk 0:02:44]} 13. Ne4 {[%clk 0:02:41]}  Bb7 {[%clk 0:02:43]} 14. Nxd6 {[%clk 0:02:41]}  Qxd6 {[%clk 0:02:44]} 15. Qe2 {[%clk 0:02:36]}  Rfc8 {[%clk 0:02:40]} 16. Rfd1 {[%clk 0:02:33]}  Rc7 {[%clk 0:02:38]} 17. h3 {[%clk 0:02:22]}  Rac8 {[%clk 0:02:36]} 18. Ba6 {[%clk 0:02:20]}  Bxa6 {[%clk 0:02:35]} 19. Qxa6 {[%clk 0:02:21]}  Qe7 {[%clk 0:02:34]} 20. Qd3 {[%clk 0:01:58]}  c5 {[%clk 0:02:32]} 21. Qa3 {[%clk 0:01:57]}  Kf8 {[%clk 0:02:24]} 22. d5 {[%clk 0:01:50]}  exd5 {[%clk 0:02:23]} 23. Rxd5 {[%clk 0:01:51]}  Nf6 {[%clk 0:02:21]} 24. Rd2 {[%clk 0:01:48]}  Rd7 {[%clk 0:02:13]} 25. Rcd1 {[%clk 0:01:47]}  Rcd8 {[%clk 0:02:11]} 26. Rxd7 {[%clk 0:01:31]}  Rxd7 {[%clk 0:02:11]} 27. Rxd7 {[%clk 0:01:31]}  Qxd7 {[%clk 0:02:12]} 28. Qb3 {[%clk 0:01:30]}  Ne4 {[%clk 0:02:05]} 29. Qc2 {[%clk 0:01:29]}  Qd5 {[%clk 0:02:02]} 30. Kf1 {[%clk 0:01:22]}  Ke7 {[%clk 0:01:58]} 31. Ke2 {[%clk 0:01:22]}  Nd6 {[%clk 0:01:55]} 32. b3 {[%clk 0:01:20]}  b5 {[%clk 0:01:49]} 33. Nd2 {[%clk 0:01:15]}  b4 {[%clk 0:01:33]} 34. f3 {[%clk 0:01:07]}  a5 {[%clk 0:01:25]} 35. Qd3 {[%clk 0:01:04]}  Qc6 {[%clk 0:01:02]} 36. Nc4 {[%clk 0:00:58]}  Nxc4 {[%clk 0:00:59]} 37. Qxc4 {[%clk 0:00:59]}  g5 {[%clk 0:00:43]} 38. h4 {[%clk 0:00:54]}  Kf6 {[%clk 0:00:40]} 39. hxg5+ {[%clk 0:00:54]}  hxg5 {[%clk 0:00:41]} 40. g4 {[%clk 0:00:52]}  a4 {[%clk 0:00:33]} 41. Kf2 {[%clk 0:00:22]}  axb3 {[%clk 0:00:22]} 42. axb3 {[%clk 0:00:22]}  Qe6 {[%clk 0:00:23]} 43. Qxc5 {[%clk 0:00:20]}  Qxb3 {[%clk 0:00:23]} 44. Qf5+ {[%clk 0:00:20]}  Ke7 {[%clk 0:00:23]} 45. Qxg5+ {[%clk 0:00:21]}  Kd7 {[%clk 0:00:23]} 46. Qf5+ {[%clk 0:00:21]}  Kc6 {[%clk 0:00:22]} 47. Qf6+ {[%clk 0:00:20]}  Kb5 {[%clk 0:00:22]} 48. g5 {[%clk 0:00:20]}  Qc2+ {[%clk 0:00:17]} 49. Kg3 {[%clk 0:00:19]}  Qc7+ {[%clk 0:00:18]} 50. f4 {[%clk 0:00:19]}  b3 {[%clk 0:00:17]} 51. Kg4 {[%clk 0:00:14]}  Kb4 {[%clk 0:00:15]} 52. f5 {[%clk 0:00:12]}  Qc4+ {[%clk 0:00:09]} 53. Kh5 {[%clk 0:00:11]}  Qe2+ {[%clk 0:00:09]} 54. Kh6 {[%clk 0:00:11]}  b2 {[%clk 0:00:10]} 55. Qb6+ {[%clk 0:00:07]}  Qb5 {[%clk 0:00:09]} 56. Qd4+ {[%clk 0:00:05]}  Kb3 {[%clk 0:00:09]} 57. Qd1+ {[%clk 0:00:05]}  Ka3 {[%clk 0:00:08]} 58. Qb1 {[%clk 0:00:04]}  Qb6+ {[%clk 0:00:08]} 59. g6 {[%clk 0:00:04]}  Qxe3+ {[%clk 0:00:08]} 60. Kg7 {[%clk 0:00:04]}  fxg6 {[%clk 0:00:08]} 61. fxg6 {[%clk 0:00:05]}  Qc1 {[%clk 0:00:06]} 62. Qd3+ {[%clk 0:00:04]}  Kb4 {[%clk 0:00:06]} 63. Qd4+ {[%clk 0:00:03]}  Kb3 {[%clk 0:00:06]} 64. Qb6+ {[%clk 0:00:03]}  Kc2 {[%clk 0:00:06]} 65. Qc5+ {[%clk 0:00:02]}  Kd1 {[%clk 0:00:06]} 66. Qg1+ {[%clk 0:00:02]}  Ke2 {[%clk 0:00:06]} 67. Qg2+ {[%clk 0:00:02]}  Ke3 {[%clk 0:00:06]} 68. Qg3+ {[%clk 0:00:02]}  Kd4 {[%clk 0:00:07]} 69. Qd6+ {[%clk 0:00:02]}  Ke4 {[%clk 0:00:07]} 70. Qe6+ {[%clk 0:00:03]}  Kf4 {[%clk 0:00:07]} 71. Qd6+ {[%clk 0:00:02]}  Kf3 {[%clk 0:00:07]} 72. Qd5+ {[%clk 0:00:02]}  Kg3 {[%clk 0:00:07]} 73. Qe5+ {[%clk 0:00:02]}  Kf2 {[%clk 0:00:07]} 74. Qd4+ {[%clk 0:00:03]}  Ke2 {[%clk 0:00:07]} 75. Qe5+ {[%clk 0:00:03]}  Kd1 {[%clk 0:00:07]} 76. Qd4+ {[%clk 0:00:03]}  Qd2 {[%clk 0:00:06]} 77. Qg1+ {[%clk 0:00:02]}  Kc2 {[%clk 0:00:06]} 78. Qc5+ {[%clk 0:00:01]}  Qc3+ {[%clk 0:00:07]} 79. Qxc3+ {[%clk 0:00:01]}  Kxc3 {[%clk 0:00:07]} 80. Kf7 {[%clk 0:00:02]}  b1=Q {[%clk 0:00:08]} 81. g7 {[%clk 0:00:03]}  Qh7 {[%clk 0:00:07]} 82. Kf8 {[%clk 0:00:03]}  Qf5+ {[%clk 0:00:07]} 83. Ke7 {[%clk 0:00:04]}  Qg6 {[%clk 0:00:08]} 84. Kf8 {[%clk 0:00:04]}  Qf6+ {[%clk 0:00:08]} 0-1


[Site "https://www.chess.com"]